[Event "*** Titled Tuesday Blitz"]
[Site "Chess.com"]
[Date "2020.02.04"]
[Round "9"]
[White "vugarrasulov"]
[Black "Tayson_7"]
[Result "1-0"]
[WhiteElo "2912"]
[BlackElo "2699"]
[TimeControl "180+2"]
[EndTime "15:09:10 PST"]
[Termination "vugarrasulov won on time"]

1. e4 {[%clk 0:03:01.9]} 1... c5 {[%clk 0:02:56.6]} 2. Nf3 {[%clk 0:03:02]} 2...
d6 {[%clk 0:02:56.8]} 3. d4 {[%clk 0:03:03.3]} 3... cxd4 {[%clk 0:02:58.7]} 4.
Nxd4 {[%clk 0:03:04.8]} 4... Nf6 {[%clk 0:03:00.3]} 5. Nc3 {[%clk 0:03:06.2]}
5... a6 {[%clk 0:03:01.6]} 6. Be3 {[%clk 0:03:07.6]} 6... Ng4 {[%clk 0:03:01.1]}
7. Bg5 {[%clk 0:03:08]} 7... Nc6 {[%clk 0:02:50.1]} 8. Be2 {[%clk 0:03:00.5]}
8... h6 {[%clk 0:02:45.4]} 9. Bh4 {[%clk 0:02:53.8]} 9... Nge5 {[%clk
0:02:43.4]} 10. f4 {[%clk 0:02:48.8]} 10... Ng6 {[%clk 0:02:41.6]} 11. Bg3
{[%clk 0:02:49]} 11... e5 {[%clk 0:02:40.6]} 12. Nxc6 {[%clk 0:02:48.4]} 12...
bxc6 {[%clk 0:02:38.9]} 13. f5 {[%clk 0:02:49.7]} 13... Nf4 {[%clk 0:02:32.7]}
14. Bxf4 {[%clk 0:02:50.8]} 14... exf4 {[%clk 0:02:34.6]} 15. Qd2 {[%clk
0:02:52.1]} 15... Qh4+ {[%clk 0:02:29.6]} 16. Kf1 {[%clk 0:02:39.9]} 16... Be7
{[%clk 0:02:27.5]} 17. Bf3 {[%clk 0:02:38.7]} 17... O-O {[%clk 0:02:25.1]} 18.
Ne2 {[%clk 0:02:39.3]} 18... Rb8 {[%clk 0:02:17.9]} 19. c3 {[%clk 0:02:28.8]}
19... d5 {[%clk 0:02:15.4]} 20. exd5 {[%clk 0:02:20.4]} 20... Bxf5 {[%clk
0:01:58.3]} 21. Nd4 {[%clk 0:02:19.2]} 21... Bg6 {[%clk 0:01:48.3]} 22. dxc6
{[%clk 0:02:13.6]} 22... Bc5 {[%clk 0:01:46.3]} 23. b4 {[%clk 0:02:11.1]} 23...
Bxd4 {[%clk 0:01:46.8]} 24. cxd4 {[%clk 0:02:11.8]} 24... Rbe8 {[%clk
0:01:46.8]} 25. d5 {[%clk 0:02:07.9]} 25... Re3 {[%clk 0:01:46.6]} 26. Qf2
{[%clk 0:01:46.7]} 26... Qf6 {[%clk 0:01:36.6]} 27. Rd1 {[%clk 0:01:48]} 27...
Rfe8 {[%clk 0:01:36.7]} 28. h4 {[%clk 0:01:47]} 28... Be4 {[%clk 0:01:27.3]} 29.
Bxe4 {[%clk 0:01:35.9]} 29... R8xe4 {[%clk 0:01:19.9]} 30. c7 {[%clk 0:01:26.1]}
30... Qc3 {[%clk 0:00:33.1]} 31. d6 {[%clk 0:01:27]} 31... Rd4 {[%clk
0:00:25.7]} 32. Rb1 {[%clk 0:00:29.4]} 32... Qd3+ {[%clk 0:00:13]} 33. Kg1
{[%clk 0:00:30.3]} 33... Qxb1+ {[%clk 0:00:14.6]} 34. Kh2 {[%clk 0:00:31.6]}
34... Qf5 {[%clk 0:00:14.9]} 35. Rc1 {[%clk 0:00:24.5]} 35... Qc8 {[%clk
0:00:15.6]} 36. Rc6 {[%clk 0:00:25]} 36... Red3 {[%clk 0:00:11.8]} 37. Rb6
{[%clk 0:00:19.4]} 37... Kh7 {[%clk 0:00:07.5]} 38. Rb8 {[%clk 0:00:20.8]} 38...
Qf5 {[%clk 0:00:05]} 39. c8=Q {[%clk 0:00:21.7]} 39... Qe5 {[%clk 0:00:06.2]}
40. Qe8 {[%clk 0:00:18.9]} 40... Qf6 {[%clk 0:00:06.9]} 41. h5 {[%clk
0:00:12.9]} 1-0

[Event "*** Titled Tuesday Blitz"]
[Site "Chess.com"]
[Date "2020.02.04"]
[Round "9"]
[White "WPWPWP-2015"]
[Black "INLOVEWITHF"]
[Result "1-0"]
[WhiteElo "2522"]
[BlackElo "2355"]
[TimeControl "180+2"]
[EndTime "15:09:15 PST"]
[Termination "WPWPWP-2015 won by resignation"]

1. d4 {[%clk 0:03:01.9]} 1... Nf6 {[%clk 0:02:55.6]} 2. c4 {[%clk 0:03:02.2]}
2... e6 {[%clk 0:02:55.9]} 3. Nc3 {[%clk 0:03:03.3]} 3... d5 {[%clk 0:02:56.8]}
4. Nf3 {[%clk 0:03:03]} 4... c6 {[%clk 0:02:57.3]} 5. Bg5 {[%clk 0:02:58.7]}
5... dxc4 {[%clk 0:02:57.5]} 6. e4 {[%clk 0:02:58.5]} 6... b5 {[%clk 0:02:59]}
7. e5 {[%clk 0:02:58.9]} 7... h6 {[%clk 0:03:00.6]} 8. Bh4 {[%clk 0:02:57.8]}
8... g5 {[%clk 0:03:02.2]} 9. Nxg5 {[%clk 0:02:59.1]} 9... hxg5 {[%clk
0:03:04.1]} 10. Bxg5 {[%clk 0:03:00.7]} 10... Nbd7 {[%clk 0:03:05.8]} 11. g3
{[%clk 0:03:00.3]} 11... Bb7 {[%clk 0:03:05.9]} 12. Bg2 {[%clk 0:03:00.2]} 12...
Qb6 {[%clk 0:03:07.4]} 13. exf6 {[%clk 0:03:00.1]} 13... O-O-O {[%clk
0:03:07.2]} 14. O-O {[%clk 0:03:00.3]} 14... c5 {[%clk 0:03:08.8]} 15. d5 {[%clk
0:02:58.1]} 15... b4 {[%clk 0:03:09.8]} 16. Na4 {[%clk 0:02:54]} 16... Qb5
{[%clk 0:02:45.3]} 17. b3 {[%clk 0:02:51.9]} 17... c3 {[%clk 0:02:40.8]} 18. Re1
{[%clk 0:02:44.1]} 18... Nb6 {[%clk 0:02:27.8]} 19. Bf1 {[%clk 0:02:37.8]} 19...
Qd7 {[%clk 0:02:23.2]} 20. dxe6 {[%clk 0:02:31.9]} 20... Qc6 {[%clk 0:02:20.5]}
21. Qxd8+ {[%clk 0:01:25.1]} 21... Kxd8 {[%clk 0:02:20.1]} 22. e7+ {[%clk
0:01:26.4]} 22... Bxe7 {[%clk 0:01:58.6]} 23. fxe7+ {[%clk 0:01:15.9]} 23... Ke8
{[%clk 0:01:59.5]} 24. f3 {[%clk 0:01:12.4]} 24... Qxf3 {[%clk 0:01:49.7]} 25.
Bb5+ {[%clk 0:00:56.8]} 25... Nd7 {[%clk 0:01:40.6]} 26. Bxd7+ {[%clk
0:00:55.4]} 26... Kxd7 {[%clk 0:01:42.5]} 27. Nxc5+ {[%clk 0:00:56.6]} 27... Kc6
{[%clk 0:00:59.2]} 28. Nxb7 {[%clk 0:00:44.9]} 28... Re8 {[%clk 0:00:48.1]} 29.
Nd8+ {[%clk 0:00:31.8]} 29... Kc7 {[%clk 0:00:40]} 30. Re3 {[%clk 0:00:22.8]}
30... Qd5 {[%clk 0:00:36.9]} 31. Bf4+ {[%clk 0:00:15.5]} 31... Kb6 {[%clk
0:00:37.5]} 32. Re5 {[%clk 0:00:14.8]} 32... Qd3 {[%clk 0:00:26.8]} 33. Rae1
{[%clk 0:00:14.9]} 33... c2 {[%clk 0:00:22.5]} 34. Nxf7 {[%clk 0:00:15.2]} 34...
Kc6 {[%clk 0:00:17.2]} 35. Re6+ {[%clk 0:00:14.3]} 35... Kb7 {[%clk 0:00:16.5]}
36. Nd6+ {[%clk 0:00:14.6]} 36... Ka8 {[%clk 0:00:12.2]} 37. Nxe8 {[%clk
0:00:15.1]} 37... Qd4+ {[%clk 0:00:11.3]} 38. Kg2 {[%clk 0:00:14.1]} 38... Qd5+
{[%clk 0:00:12.2]} 39. R6e4 {[%clk 0:00:13.4]} 39... Qc6 {[%clk 0:00:06.3]} 40.
Nc7+ {[%clk 0:00:13.2]} 1-0

[Event "*** Titled Tuesday Blitz"]
[Site "Chess.com"]
[Date "2020.02.04"]
[Round "9"]
[White "vlad_Sid"]
[Black "chessdjw"]
[Result "1-0"]
[WhiteElo "2745"]
[BlackElo "2598"]
[TimeControl "180+2"]
[EndTime "15:09:17 PST"]
[Termination "vlad_Sid won by resignation"]

1. c4 {[%clk 0:03:01.9]} 1... g6 {[%clk 0:02:58.7]} 2. g3 {[%clk 0:03:03.8]}
2... Bg7 {[%clk 0:03:00.1]} 3. Bg2 {[%clk 0:03:05.6]} 3... Nf6 {[%clk
0:02:59.3]} 4. Nc3 {[%clk 0:03:07.1]} 4... O-O {[%clk 0:03:00.8]} 5. d3 {[%clk
0:03:08.7]} 5... Nc6 {[%clk 0:02:59.6]} 6. Nf3 {[%clk 0:03:10.1]} 6... d5 {[%clk
0:03:00.6]} 7. O-O {[%clk 0:03:12]} 7... d4 {[%clk 0:03:00.3]} 8. Nb1 {[%clk
0:03:12]} 8... e5 {[%clk 0:03:01.6]} 9. Nbd2 {[%clk 0:03:11.5]} 9... Re8 {[%clk
0:03:02.8]} 10. Ng5 {[%clk 0:03:11.6]} 10... Nd7 {[%clk 0:02:53.7]} 11. f4
{[%clk 0:03:08.1]} 11... exf4 {[%clk 0:02:52.7]} 12. gxf4 {[%clk 0:03:00.1]}
12... h6 {[%clk 0:02:52.7]} 13. Nge4 {[%clk 0:02:58.6]} 13... f5 {[%clk
0:02:51.1]} 14. Ng3 {[%clk 0:02:56.3]} 14... Nf6 {[%clk 0:02:46.7]} 15. h3
{[%clk 0:02:51.5]} 15... Kh7 {[%clk 0:02:47.3]} 16. Nf3 {[%clk 0:02:51.2]} 16...
Qd6 {[%clk 0:02:47.2]} 17. Bd2 {[%clk 0:02:30.9]} 17... Bd7 {[%clk 0:02:48.2]}
18. a3 {[%clk 0:02:27.9]} 18... a5 {[%clk 0:02:48.3]} 19. Qc2 {[%clk 0:02:25.2]}
19... Re7 {[%clk 0:02:40.4]} 20. Rae1 {[%clk 0:02:24.7]} 20... Rae8 {[%clk
0:02:40.3]} 21. Kh2 {[%clk 0:01:56.2]} 21... b6 {[%clk 0:02:31.4]} 22. Nh4
{[%clk 0:01:50.2]} 22... Re3 {[%clk 0:01:51.6]} 23. Bxe3 {[%clk 0:01:45.4]}
23... dxe3 {[%clk 0:01:52.3]} 24. Bxc6 {[%clk 0:01:36.2]} 24... Bxc6 {[%clk
0:01:54.2]} 25. c5 {[%clk 0:01:20]} 25... bxc5 {[%clk 0:01:51.6]} 26. Rc1 {[%clk
0:01:21]} 26... Nd7 {[%clk 0:01:51.6]} 27. b4 {[%clk 0:01:16.5]} 27... Bd4
{[%clk 0:00:57.4]} 28. bxc5 {[%clk 0:01:09.7]} 28... Nxc5 {[%clk 0:00:58.4]} 29.
Nf3 {[%clk 0:01:09.7]} 29... Ba4 {[%clk 0:00:49.6]} 30. Qc4 {[%clk 0:01:06.4]}
30... Bb2 {[%clk 0:00:25.2]} 31. Qxc5 {[%clk 0:01:05.8]} 31... Bxc1 {[%clk
0:00:26.3]} 32. Rxc1 {[%clk 0:01:07.3]} 32... Qxf4 {[%clk 0:00:26.8]} 33. Qxc7+
{[%clk 0:01:07.2]} 33... Qxc7 {[%clk 0:00:28.4]} 34. Rxc7+ {[%clk 0:01:09.1]}
34... Kg8 {[%clk 0:00:29.6]} 35. Ra7 {[%clk 0:01:10.3]} 35... Bd1 {[%clk
0:00:28.7]} 36. Rxa5 {[%clk 0:01:10]} 36... f4 {[%clk 0:00:30]} 37. Ne4 {[%clk
0:01:05.5]} 37... Bxe2 {[%clk 0:00:30.6]} 38. Nf6+ {[%clk 0:01:05.4]} 38... Kf7
{[%clk 0:00:30.6]} 39. Nxe8 {[%clk 0:01:04.9]} 39... Bxf3 {[%clk 0:00:32]} 40.
Nd6+ {[%clk 0:01:05.8]} 40... Ke6 {[%clk 0:00:31.1]} 41. Nc4 {[%clk 0:01:06]}
41... Bd5 {[%clk 0:00:30.5]} 42. Ra6+ {[%clk 0:01:01]} 42... Kf5 {[%clk
0:00:29.2]} 43. Kg1 {[%clk 0:01:01.4]} 43... h5 {[%clk 0:00:24.3]} 44. Ra5
{[%clk 0:01:01.3]} 44... Ke6 {[%clk 0:00:24.5]} 45. h4 {[%clk 0:01:00.6]} 45...
g5 {[%clk 0:00:20.9]} 46. hxg5 {[%clk 0:00:58.6]} 46... h4 {[%clk 0:00:22.4]}
47. g6 {[%clk 0:00:56.9]} 47... h3 {[%clk 0:00:15.6]} 48. g7 {[%clk 0:00:56.6]}
48... Kf7 {[%clk 0:00:11.3]} 49. Rxd5 {[%clk 0:00:56.2]} 49... e2 {[%clk
0:00:12.9]} 50. Re5 {[%clk 0:00:57.1]} 50... f3 {[%clk 0:00:14.4]} 51. Kf2
{[%clk 0:00:55]} 51... h2 {[%clk 0:00:15.2]} 52. Rh5 {[%clk 0:00:55.7]} 52...
Kxg7 {[%clk 0:00:14.4]} 53. Rxh2 {[%clk 0:00:56.5]} 1-0

[Event "*** Titled Tuesday Blitz"]
[Site "Chess.com"]
[Date "2020.02.04"]
[Round "9"]
[White "allvim"]
[Black "vladimirdamjanovic"]
[Result "1/2-1/2"]
[WhiteElo "2438"]
[BlackElo "2609"]
[TimeControl "180+2"]
[EndTime "15:09:18 PST"]
[Termination "Game drawn by repetition"]

1. d4 {[%clk 0:03:01.9]} 1... Nf6 {[%clk 0:03:00.6]} 2. c4 {[%clk 0:03:03.4]}
2... c5 {[%clk 0:03:01.4]} 3. d5 {[%clk 0:03:04.6]} 3... b5 {[%clk 0:03:02.9]}
4. Nf3 {[%clk 0:03:05.5]} 4... d6 {[%clk 0:03:03.2]} 5. Qc2 {[%clk 0:03:06.2]}
5... b4 {[%clk 0:03:03.6]} 6. b3 {[%clk 0:03:06.5]} 6... g6 {[%clk 0:03:04.5]}
7. Bb2 {[%clk 0:03:07.8]} 7... Bg7 {[%clk 0:03:05.5]} 8. Nbd2 {[%clk 0:03:09.2]}
8... O-O {[%clk 0:03:05.4]} 9. e4 {[%clk 0:03:10.5]} 9... e5 {[%clk 0:03:01.7]}
10. Bd3 {[%clk 0:03:01.2]} 10... a5 {[%clk 0:02:58.5]} 11. O-O {[%clk
0:02:59.2]} 11... Nh5 {[%clk 0:02:54.5]} 12. Rfe1 {[%clk 0:02:47.6]} 12... Nd7
{[%clk 0:02:48.9]} 13. g3 {[%clk 0:02:43.4]} 13... Nb6 {[%clk 0:02:39.5]} 14.
Nf1 {[%clk 0:02:33.5]} 14... Bg4 {[%clk 0:02:38.6]} 15. Nh4 {[%clk 0:02:15.9]}
15... Bf6 {[%clk 0:02:35.3]} 16. Ng2 {[%clk 0:02:16.5]} 16... Bd7 {[%clk
0:02:30.9]} 17. Bc1 {[%clk 0:02:09.9]} 17... a4 {[%clk 0:02:29.6]} 18. Rb1
{[%clk 0:02:05.9]} 18... axb3 {[%clk 0:02:29.8]} 19. axb3 {[%clk 0:02:07.5]}
19... Bh3 {[%clk 0:02:17.3]} 20. Nfe3 {[%clk 0:02:06.7]} 20... Bg7 {[%clk
0:02:13.7]} 21. Bf1 {[%clk 0:01:43.4]} 21... Ra7 {[%clk 0:02:07]} 22. Nh4 {[%clk
0:01:42.6]} 22... Bd7 {[%clk 0:02:06.2]} 23. Bb2 {[%clk 0:01:31.5]} 23... Bf6
{[%clk 0:02:05.1]} 24. Nf3 {[%clk 0:01:31]} 24... Qc7 {[%clk 0:02:03.5]} 25. Ra1
{[%clk 0:01:31.5]} 25... Rfa8 {[%clk 0:02:04.9]} 26. Rxa7 {[%clk 0:01:29.8]}
26... Rxa7 {[%clk 0:02:06.8]} 27. Ra1 {[%clk 0:01:31.3]} 27... Bg7 {[%clk
0:02:01.6]} 28. Qb1 {[%clk 0:01:27.5]} 28... Nf6 {[%clk 0:01:57.4]} 29. Nd2
{[%clk 0:01:24.8]} 29... Bh6 {[%clk 0:01:57.1]} 30. Ra2 {[%clk 0:01:18.9]} 30...
Bxe3 {[%clk 0:01:57.4]} 31. fxe3 {[%clk 0:01:20.8]} 31... Ng4 {[%clk 0:01:48.9]}
32. Bh3 {[%clk 0:01:08.3]} 32... Nxe3 {[%clk 0:01:45]} 33. Bxd7 {[%clk
0:01:09.1]} 33... Qxd7 {[%clk 0:01:45.4]} 34. Nf1 {[%clk 0:01:03.7]} 34... Nxf1
{[%clk 0:01:34.1]} 35. Kxf1 {[%clk 0:01:03.8]} 35... Rxa2 {[%clk 0:01:16.7]} 36.
Qxa2 {[%clk 0:01:05.7]} 36... Qg4 {[%clk 0:01:17.8]} 37. Qa6 {[%clk 0:00:47.7]}
37... Qd1+ {[%clk 0:01:06.8]} 38. Kg2 {[%clk 0:00:48.8]} 38... Qe2+ {[%clk
0:01:05.9]} 39. Kh3 {[%clk 0:00:50]} 39... Qh5+ {[%clk 0:00:45.9]} 40. Kg2
{[%clk 0:00:50.9]} 40... Qe2+ {[%clk 0:00:47.8]} 41. Kh3 {[%clk 0:00:52.3]}
41... Qf1+ {[%clk 0:00:37.4]} 42. Kh4 {[%clk 0:00:43.5]} 42... Nd7 {[%clk
0:00:02.2]} 43. Qxd6 {[%clk 0:00:26.9]} 43... Qf2 {[%clk 0:00:03.5]} 44. Kh3
{[%clk 0:00:19.2]} 44... Qf1+ {[%clk 0:00:04.3]} 45. Kh4 {[%clk 0:00:20.3]}
45... Qf2 {[%clk 0:00:05.5]} 46. Kh3 {[%clk 0:00:21.4]} 46... Qf1+ {[%clk
0:00:05.4]} 47. Kh4 {[%clk 0:00:21.4]} 1/2-1/2

[Event "*** Titled Tuesday Blitz"]
[Site "Chess.com"]
[Date "2020.02.04"]
[Round "9"]
[White "Firouzja2003"]
[Black "sergiochess83"]
[Result "0-1"]
[WhiteElo "3135"]
[BlackElo "2990"]
[TimeControl "180+2"]
[EndTime "15:09:33 PST"]
[Termination "sergiochess83 won by resignation"]

1. e4 {[%clk 0:01:42.7]} 1... c6 {[%clk 0:02:59.5]} 2. Bc4 {[%clk 0:01:35.6]}
2... d5 {[%clk 0:02:59.2]} 3. Bb3 {[%clk 0:01:35.8]} 3... dxe4 {[%clk
0:02:53.9]} 4. Qh5 {[%clk 0:01:36.8]} 4... g6 {[%clk 0:02:49.4]} 5. Qh4 {[%clk
0:01:31.7]} 5... Nf6 {[%clk 0:02:45.5]} 6. Nc3 {[%clk 0:01:31.4]} 6... Nbd7
{[%clk 0:02:43.9]} 7. Nxe4 {[%clk 0:01:28.2]} 7... Nxe4 {[%clk 0:02:41.9]} 8.
Qxe4 {[%clk 0:01:30.1]} 8... Bg7 {[%clk 0:02:40.8]} 9. Nf3 {[%clk 0:01:26.2]}
9... Nc5 {[%clk 0:02:39]} 10. Qh4 {[%clk 0:01:24.2]} 10... Nxb3 {[%clk
0:02:32.6]} 11. axb3 {[%clk 0:01:26.1]} 11... e5 {[%clk 0:02:23.4]} 12. Qxd8+
{[%clk 0:01:23.5]} 12... Kxd8 {[%clk 0:02:24.3]} 13. O-O {[%clk 0:01:25.2]}
13... Bg4 {[%clk 0:02:15]} 14. Ng5 {[%clk 0:01:19.8]} 14... Ke7 {[%clk
0:02:14.6]} 15. d3 {[%clk 0:01:15]} 15... h6 {[%clk 0:02:06.6]} 16. Ne4 {[%clk
0:01:10]} 16... b6 {[%clk 0:02:07.8]} 17. Re1 {[%clk 0:01:08.8]} 17... Be6
{[%clk 0:02:01.3]} 18. b4 {[%clk 0:01:06.4]} 18... Rhd8 {[%clk 0:01:51.6]} 19.
Be3 {[%clk 0:01:04]} 19... f5 {[%clk 0:01:40.3]} 20. Nc3 {[%clk 0:01:04.8]}
20... Kd7 {[%clk 0:01:06.4]} 21. Ra6 {[%clk 0:00:53]} 21... Kc7 {[%clk
0:01:05.9]} 22. Rea1 {[%clk 0:00:54.2]} 22... Kb7 {[%clk 0:01:01.3]} 23. b5
{[%clk 0:00:55.7]} 23... Bd7 {[%clk 0:00:55.5]} 24. bxc6+ {[%clk 0:00:39.9]}
24... Bxc6 {[%clk 0:00:55.9]} 25. f3 {[%clk 0:00:41.5]} 25... Bf8 {[%clk
0:00:49.2]} 26. h4 {[%clk 0:00:28]} 26... g5 {[%clk 0:00:40.7]} 27. hxg5 {[%clk
0:00:28.9]} 27... hxg5 {[%clk 0:00:42]} 28. R6a2 {[%clk 0:00:21.4]} 28... Be7
{[%clk 0:00:38.4]} 29. Ne2 {[%clk 0:00:20.9]} 29... f4 {[%clk 0:00:36.5]} 30.
Bf2 {[%clk 0:00:20.4]} 30... g4 {[%clk 0:00:38.1]} 31. fxg4 {[%clk 0:00:20.3]}
31... Rg8 {[%clk 0:00:37.7]} 32. Nc3 {[%clk 0:00:11.3]} 32... Rxg4 {[%clk
0:00:37.2]} 33. Ne4 {[%clk 0:00:13.2]} 33... Rg6 {[%clk 0:00:32.5]} 34. Kf1
{[%clk 0:00:09.7]} 34... a5 {[%clk 0:00:31.4]} 35. b4 {[%clk 0:00:10.7]} 35...
Bxb4 {[%clk 0:00:28.3]} 36. Rb1 {[%clk 0:00:11.2]} 36... Bxe4 {[%clk 0:00:27.3]}
37. dxe4 {[%clk 0:00:12.3]} 37... Rc6 {[%clk 0:00:27.9]} 38. g3 {[%clk 0:00:13]}
38... fxg3 {[%clk 0:00:26]} 39. Bxg3 {[%clk 0:00:14.9]} 39... Rf8+ {[%clk
0:00:25.4]} 40. Ke2 {[%clk 0:00:16.2]} 40... Rc4 {[%clk 0:00:26]} 41. c3 {[%clk
0:00:07.9]} 41... Bxc3 {[%clk 0:00:24.1]} 42. Kd3 {[%clk 0:00:09.8]} 42... Rc6
{[%clk 0:00:21.5]} 43. Bf2 {[%clk 0:00:10.1]} 43... Rf3+ {[%clk 0:00:19.7]} 44.
Ke2 {[%clk 0:00:10.9]} 44... Rf4 {[%clk 0:00:18.5]} 45. Kd3 {[%clk 0:00:08.5]}
45... Bb4 {[%clk 0:00:16]} 46. Rb3 {[%clk 0:00:10]} 46... Rf3+ {[%clk
0:00:13.8]} 47. Be3 {[%clk 0:00:10.9]} 47... Bc5 {[%clk 0:00:14.8]} 48. Ke2
{[%clk 0:00:10.5]} 48... Rxe3+ {[%clk 0:00:15.5]} 49. Rxe3 {[%clk 0:00:12.4]}
49... Bxe3 {[%clk 0:00:17.1]} 50. Kxe3 {[%clk 0:00:14.3]} 50... Rc5 {[%clk
0:00:18.1]} 51. Kf3 {[%clk 0:00:15.9]} 51... Ka6 {[%clk 0:00:18.4]} 52. Kg4
{[%clk 0:00:17.8]} 52... b5 {[%clk 0:00:19.7]} 53. Kf5 {[%clk 0:00:19.7]} 53...
b4 {[%clk 0:00:21.2]} 54. Rc2 {[%clk 0:00:21.5]} 0-1

[Event "*** Titled Tuesday Blitz"]
[Site "Chess.com"]
[Date "2020.02.04"]
[Round "9"]
[White "reigningmvp"]
[Black "Region_07"]
[Result "0-1"]
[WhiteElo "2334"]
[BlackElo "2488"]
[TimeControl "180+2"]
[EndTime "15:09:37 PST"]
[Termination "Region_07 won by checkmate"]

1. Nf3 {[%clk 0:03:01.9]} 1... f5 {[%clk 0:02:59.3]} 2. b3 {[%clk 0:02:58.2]}
2... Nf6 {[%clk 0:02:58.8]} 3. Bb2 {[%clk 0:02:59.6]} 3... d5 {[%clk 0:02:57.2]}
4. g3 {[%clk 0:02:59.6]} 4... e6 {[%clk 0:02:55.9]} 5. Bg2 {[%clk 0:03:00.1]}
5... Bd6 {[%clk 0:02:57.3]} 6. Ne5 {[%clk 0:02:59.3]} 6... O-O {[%clk
0:02:57.2]} 7. d3 {[%clk 0:02:59.1]} 7... Nbd7 {[%clk 0:02:53.5]} 8. Nxd7 {[%clk
0:02:59.6]} 8... Bxd7 {[%clk 0:02:51.8]} 9. Nd2 {[%clk 0:03:00.3]} 9... Qe7
{[%clk 0:02:51.7]} 10. O-O {[%clk 0:02:59.8]} 10... c6 {[%clk 0:02:51.8]} 11. e4
{[%clk 0:02:52.5]} 11... fxe4 {[%clk 0:02:46.3]} 12. dxe4 {[%clk 0:02:52.3]}
12... Bc5 {[%clk 0:02:47.7]} 13. Qe2 {[%clk 0:02:45.3]} 13... Qf7 {[%clk
0:02:34.1]} 14. Kh1 {[%clk 0:02:19.1]} 14... Qg6 {[%clk 0:02:31.2]} 15. h3
{[%clk 0:02:09.4]} 15... Nh5 {[%clk 0:02:12.7]} 16. Bf3 {[%clk 0:01:56.8]} 16...
Nf6 {[%clk 0:01:32.8]} 17. e5 {[%clk 0:01:52.7]} 17... Ne8 {[%clk 0:01:07.5]}
18. c4 {[%clk 0:01:45.8]} 18... Nc7 {[%clk 0:01:02.4]} 19. Rac1 {[%clk
0:01:44.7]} 19... Bb4 {[%clk 0:00:59.1]} 20. Bg2 {[%clk 0:01:43.4]} 20... Na6
{[%clk 0:00:51.3]} 21. a3 {[%clk 0:01:38.3]} 21... Bxd2 {[%clk 0:00:50.9]} 22.
Qxd2 {[%clk 0:01:39.4]} 22... Nc5 {[%clk 0:00:52.5]} 23. Qe3 {[%clk 0:01:39.8]}
23... b6 {[%clk 0:00:45.2]} 24. Rcd1 {[%clk 0:01:33.5]} 24... Rf7 {[%clk
0:00:35.3]} 25. f4 {[%clk 0:01:16]} 25... Raf8 {[%clk 0:00:34.3]} 26. b4 {[%clk
0:00:55.4]} 26... Na4 {[%clk 0:00:23.3]} 27. Ba1 {[%clk 0:00:56.4]} 27... dxc4
{[%clk 0:00:16.6]} 28. Rd4 {[%clk 0:00:39.4]} 28... c5 {[%clk 0:00:16.5]} 29.
Rxc4 {[%clk 0:00:37.9]} 29... Bb5 {[%clk 0:00:17.4]} 30. Rcc1 {[%clk 0:00:24.3]}
30... Bxf1 {[%clk 0:00:18]} 31. Rxf1 {[%clk 0:00:25.8]} 31... cxb4 {[%clk
0:00:17.5]} 32. axb4 {[%clk 0:00:26.7]} 32... b5 {[%clk 0:00:15.8]} 33. Be4
{[%clk 0:00:21.1]} 33... Qh6 {[%clk 0:00:15.7]} 34. Kg2 {[%clk 0:00:21.8]} 34...
Nb6 {[%clk 0:00:15.2]} 35. Rd1 {[%clk 0:00:12.6]} 35... Nc4 {[%clk 0:00:15.3]}
36. Qc5 {[%clk 0:00:08.7]} 36... Qh5 {[%clk 0:00:13.4]} 37. Bf3 {[%clk
0:00:09.1]} 37... Qf5 {[%clk 0:00:13.8]} 38. Qf2 {[%clk 0:00:06.9]} 38... h5
{[%clk 0:00:12.4]} 39. h4 {[%clk 0:00:06.5]} 39... Qg6 {[%clk 0:00:12]} 40. Kh2
{[%clk 0:00:04.5]} 40... a6 {[%clk 0:00:11.8]} 41. Qe2 {[%clk 0:00:05.5]} 41...
Qh6 {[%clk 0:00:08.9]} 42. Bxh5 {[%clk 0:00:06.6]} 42... Rxf4 {[%clk 0:00:10.3]}
43. gxf4 {[%clk 0:00:06.7]} 43... Qxf4+ {[%clk 0:00:12.2]} 44. Kh1 {[%clk
0:00:08]} 44... Ne3 {[%clk 0:00:12.1]} 45. Rg1 {[%clk 0:00:08.3]} 45... Qxh4+
{[%clk 0:00:11.9]} 46. Qh2 {[%clk 0:00:09.3]} 46... Qe4+ {[%clk 0:00:12.8]} 47.
Rg2 {[%clk 0:00:08.8]} 47... Rf1+ {[%clk 0:00:14.2]} 48. Qg1 {[%clk 0:00:09.8]}
48... Qxg2# {[%clk 0:00:15.5]} 0-1